[Event "8th Fischer Heraklion-GM 2022"]
[Site "Heraklion"]
[Date "2022.04.29"]
[Round "4.1"]
[White "Korneev, Oleg"]
[Black "Samaridis, Konstantinos"]
[Result "1-0"]
[ECO "C77"]
[WhiteElo "2521"]
[BlackElo "2064"]
[Annotator "TA"]
[PlyCount "55"]
[EventDate "2022.04.18"]
[EventType "tourn"]
[EventCountry "GRE"]
[SourceTitle "playchess.com"]
[Source "ChessBase"]
[SourceQuality "1"]
[TimeControl "40/5400+30:1800+30"]

{[%evp 14,55,33,23,23,7,14,8,21,15,16,8,60,52,63,54,76,61,66,61,77,64,136,160,134,125,209,199,240,234,221,225,227,243,282,280,263,250,332,342,719,726,904,893]} 1. e4 {[%emt 0:06:24]} e5 {[%emt 0:05:39]} 2. Nf3 {[%emt 0:01:04]} Nc6 {[%emt 0:00:07]} 3. Bb5 {[%emt 0:00:04]} a6 {[%emt 0:00:10]} 4. Ba4 {[%emt 0:00:05]} Nf6 {[%emt 0:00:06]} 5. d3 {[%emt 0:00:10]} d6 {[%emt 0:00:54]} 6. c3 {[%emt 0:00:31]} g6 {[%emt 0:01:06]} 7. O-O {[%emt 0:00:59]} Bg7 {[%emt 0:00:05]} 8. Re1 {[%emt 0:02:11]} O-O {[%emt 0:00:19] C77: Ruy Lopez: 3...a6 4 Ba4 Nf6, unusual lines.} 9. Bg5 {[%emt 0:02:37]} h6 {[%emt 0:00:40]} 10. Bh4 {[%emt 0:00:06]} Qe8 {[%emt 0:07:06] The position is equal.} 11. Nbd2 {[%emt 0:02:02][%cal Bb1d2,Bd2f1,Bf1e3][%mdl 32]} Nd7 {[%emt 0:04:29]} 12. Nf1 {[%emt 0:20:22]} Nc5 {[%emt 0:01:16]} (12... Nb6 $11) 13. Bc2 $1 $14 {[%emt 0:00:30]} Ne6 {[%emt 0:00:30] Inhibits d4.} 14. Ne3 {[%emt 0:02:05] [#]} Ne7 $146 {[%emt 0:10:03]} ({Predecessor:} 14... Bd7 15. Nd5 g5 16. Bg3 Rc8 17. h4 f6 18. Nd2 Nf4 19. Nf1 Nxd5 20. exd5 Ne7 {0-1 (38) Satyapragyan,S (2406)-Abdulla,A (2506) Kolkata 2008}) 15. d4 {[%emt 0:01:42] White is more active.} Nf4 {[%emt 0:02:03]} 16. Bg3 {[%emt 0:04:08]} b5 {[%emt 0:10:33]} 17. a4 {[%emt 0:05:05]} Bd7 {[%emt 0:06:08]} (17... Rb8 $14) 18. axb5 $16 {[%emt 0:03:52]} Bxb5 {[%emt 0:00:28]} 19. c4 {[%emt 0:01:05]} Bc6 {[%emt 0:00:39] [#]} (19... Bd7 $16 {was called for.}) 20. Nd5 $1 $18 {[%emt 0:00:40]} Bxd5 {[%emt 0:02:21]} 21. exd5 {[%emt 0:00:43][%cal Rd4e5]} Nh5 {[%emt 0:02:34]} 22. dxe5 {[%emt 0:00:36]} Nxg3 {[%emt 0:00:06]} 23. hxg3 {[%emt 0:00:26]} ({Don't play} 23. fxg3 $6 dxe5 24. Nxe5 Qb8) 23... dxe5 {[%emt 0:02:12]} 24. Nxe5 {[%emt 0:00:09][%cal Oe5c6] Black must now prevent Nc6!} Qd8 {[%emt 0:00:31]} 25. b4 {[%emt 0:09:55]} Qd6 {[%emt 0:01:48] [#]} 26. c5 $1 {[%emt 0:00:33]} Qxd5 {[%emt 0:00:27] [#]} (26... Qd8 27. Qf3 Qxd5) 27. Nxg6 $1 {[%emt 0:00:14][%mdl 512]} fxg6 {[%emt 0:02:21]} (27... Qxd1 28. Nxe7+) 28. Bb3 {[%emt 0:00:21] Weighted Error Value: White=0.03 (flawless) /Black=0.30} ({Less strong is} 28. Rxe7 Qd4 29. Rc1 Qxf2+ 30. Kh2 Rae8 31. Rxe8 (31. Rxc7 Re5 $11) 31... Rxe8 $18) 1-0

[Event "8th Fischer Heraklion-GM 2022"]
[Site "Heraklion"]
[Date "2022.04.29"]
[Round "4.2"]
[White "Jahncke, Giso"]
[Black "Vaishali R"]
[Result "0-1"]
[ECO "E01"]
[WhiteElo "2326"]
[BlackElo "2411"]
[Annotator "TA"]
[PlyCount "110"]
[EventDate "2022.04.18"]
[EventType "tourn"]
[EventCountry "GRE"]
[SourceTitle "playchess.com"]
[Source "ChessBase"]
[SourceQuality "1"]
[TimeControl "40/5400+30:1800+30"]

{[%evp 17,110,-5,-5,-27,-15,-23,-28,-18,-17,-79,-66,-77,0,-1,0,0,23,-4,0,7,0,0,0,0,0,0,29,20,43,53,54,50,45,36,32,0,0,-55,-8,-65,-31,-23,0,-12,-19,-237,-232,-225,-221,-379,-375,-387,-388,-388,-381,-557,-533,-523,-503,-1218,-622,-679,-679,-665,-613,-746,-705,-1012,-1012,-971,-375,-362,-362,-292,-291,-259,-280,-301,-290,-416,-407,-392,-389,-387,-383,-372,-366,-343,-333,-12845,-12846,-12846,-12847,-12847,-12847]} 1. d4 {[%emt 0:00:04]} Nf6 {[%emt 0:00:34]} 2. c4 {[%emt 0:00:06]} e6 {[%emt 0:00:04]} 3. g3 {[%emt 0:00:06]} d5 {[%emt 0:00:05]} 4. Bg2 {[%emt 0:00:09]} dxc4 {[%emt 0:00:36]} 5. Nf3 {[%emt 0:00:06]} c6 {[%emt 0:01:22]} 6. a4 {[%emt 0:01:27]} Bb4+ {[%emt 0:07:27]} 7. Nc3 {[%emt 0:03:04]} a5 {[%emt 0:03:31]} 8. O-O {[%emt 0:04:55]} Nbd7 {[%emt 0:03:30]} 9. Qc2 {[%emt 0:03:20]} O-O {[%emt 0:05:01]} 10. e4 {[%emt 0:00:23] E01: Catalan: Early deviations.} e5 {[%emt 0:10:30]} 11. dxe5 {[%emt 0:14:12]} Ng4 {[%emt 0:00:10]} 12. e6 {[%emt 0:01:10] Black has an edge.} fxe6 {[%emt 0:09:09][%cal Bf7e6,Be6e5][%mdl 32] [#]} 13. Bf4 $146 {[%emt 0:09:23]} (13. Qe2 $11 {keeps the balance.}) ({Predecessor:} 13. Qe2 Nde5 14. Nxe5 Nxe5 15. f4 Nd3 16. e5 Rb8 17. Be3 b5 18. Ne4 Be7 19. Qc2 {½-½ (51) Martin Sanchez,C (2445)-Romm,M (2457) ICCF email 2015}) 13... e5 $17 {[%emt 0:08:12]} 14. Bg5 {[%emt 0:01:34] [#]} Qe8 {[%emt 0:10:34]} (14... Be7 $1 $17 {[%cal Re7g5]} 15. Bxe7 Qxe7) 15. h3 $11 {[%emt 0:01:41]} Ngf6 {[%emt 0:00:05]} (15... h6 {is more complex.} 16. Na2 Bd6 17. Rfd1 Bc7) 16. Na2 $1 {[%emt 0:06:30]} Qe6 {[%emt 0:08:28]} 17. Be3 {[%emt 0:00:41]} h6 {[%emt 0:01:49]} 18. Nxb4 {[%emt 0:06:39]} axb4 {[%emt 0:00:03]} 19. a5 {[%emt 0:00:29]} b3 {[%emt 0:08:01]} 20. Qb1 {[%emt 0:01:08]} c5 {[%emt 0:04:19][%cal Oc4c3]} 21. Nd2 {[%emt 0:03:01]} b5 {[%emt 0:11:40]} 22. axb6 $1 {[%emt 0:00:34]} Rxa1 {[%emt 0:00:19]} 23. Qxa1 {[%emt 0:00:12]} Bb7 $1 {[%emt 0:00:11]} (23... c3 24. bxc3 Bb7 25. Qa4 $16) 24. Qc1 {[%emt 0:03:15]} Nxb6 {[%emt 0:00:31]} 25. Bxc5 {[%emt 0:05:18]} Rc8 {[%emt 0:00:09]} 26. Bb4 {[%emt 0:06:22]} (26. Bxb6 $5 Qxb6 27. Qc3 $14 (27. Nxc4 $2 Qb4 $19)) 26... Na4 {[%emt 0:01:32]} 27. Bc3 {[%emt 0:02:13]} ({White should try} 27. Re1 $11) 27... Nc5 {[%emt 0:00:44]} (27... Nxc3 28. Qxc3 Kh7 29. Ra1 $14) (27... Ba6 $15 {should be considered.}) 28. Qb1 {[%emt 0:01:35]} (28. Qe1 $1 $11) 28... Rd8 {[%emt 0:00:35][%cal Od8d2,Bc8d8,Bd8d4,Bd4d3,Bd3g3][%mdl 32] Black is much more active.} 29. Re1 $1 {[%emt 0:01:58]} Na4 {[%emt 0:01:42]} 30. Ba5 {[%emt 0:01:30]} Rd4 $36 {[%emt 0:01:58][%mdl 2048] Strongly threatening ...Qa6. White is under pressure.} 31. Re2 $2 {[%emt 0:05:28] Now White is beyond hope.} (31. Qc1 $11 {and White is okay.}) 31... Qd6 $19 {[%emt 0:01:23]} 32. Qc1 {[%emt 0:01:20]} Ba6 {[%emt 0:00:16]} ({Inferior is} 32... Qc5 33. Bc3 Rd3 34. Bxe5) 33. Bc3 $2 {[%emt 0:04:38]} (33. Bf1) 33... Rd3 {[%emt 0:00:46]} 34. Bf1 {[%emt 0:00:52]} ({Of course not} 34. Ba5 Qc5 35. Bc3 Nxc3 36. bxc3 Rxg3 $19) 34... Nxc3 {[%emt 0:00:50]} 35. bxc3 {[%emt 0:00:05]} Qb6 {[%emt 0:01:03]} 36. Qb2 {[%emt 0:02:38]} (36. Kg2 $142 b2 37. Qb1 Rxc3 38. Nxc4 Bxc4 39. Rxb2 Bxf1+ 40. Kxf1) 36... Rxg3+ {[%emt 0:00:19]} 37. Kh2 {[%emt 0:00:07]} Rd3 {[%emt 0:00:38] White must now prevent ...Nh5.} 38. f4 {[%emt 0:03:07]} (38. f3 $142 Rd7 39. Rg2) 38... Qa5 {[%emt 0:00:50]} 39. Nxb3 {[%emt 0:01:02]} cxb3 {[%emt 0:00:10]} 40. Qxb3+ {[%emt 0:00:00]} Kh7 {[%emt 0:00:00]} 41. Ra2 {[%emt 0:01:48] [#]} Qc5 {[%emt 0:07:36]} 42. Qe6 {[%emt 0:00:45]} (42. Bxd3 Bxd3) 42... Bc8 {[%emt 0:03:26]} 43. Qxe5 {[%emt 0:00:52]} Rxc3 $2 {[%emt 0:04:25]} (43... Qe3 {( -> ...Qg3+)} 44. Bxd3 Qxh3+ 45. Kg1 Qxd3) 44. Qxc5 {[%emt 0:01:50]} Rxc5 {[%emt 0:00:02]} 45. e5 {[%emt 0:00:51]} Nd5 {[%emt 0:01:22]} 46. Bd3+ {[%emt 0:00:22]} Kg8 {[%emt 0:00:11]} 47. Ra8 {[%emt 0:00:50]} Kf7 {[%emt 0:01:04]} ({And not} 47... Nxf4 48. Ba6 $17) 48. f5 {[%emt 0:00:17]} (48. Ra4 $142) 48... Ne7 {[%emt 0:01:43][%csl LRe5,LRf5]} 49. f6 {[%emt 0:00:52]} gxf6 {[%emt 0:00:07]} 50. exf6 {[%emt 0:00:06]} Kxf6 {[%emt 0:00:05]} 51. Ra3 {[%emt 0:00:40]} Kg5 {[%emt 0:01:10]} 52. Kg3 {[%emt 0:00:23]} Nf5+ {[%emt 0:00:11]} 53. Bxf5 $2 {[%emt 0:00:12]} (53. Kg2) 53... Bxf5 {[%emt 0:00:04] Black is clearly winning.} 54. h4+ {[%emt 0:00:14]} Kh5 {[%emt 0:00:07]} 55. Rf3 {[%emt 0:00:13]} Rd5 {[%emt 0:00:14] Weighted Error Value: White=0.69/Black=0.27 (precise)} 0-1

[Event "8th Fischer Heraklion-GM 2022"]
[Site "Heraklion"]
[Date "2022.04.29"]
[Round "4.3"]
[White "Milikow, Yoav"]
[Black "Kapnisis, Spyridon"]
[Result "1/2-1/2"]
[ECO "D35"]
[WhiteElo "2383"]
[BlackElo "2450"]
[Annotator "TA"]
[PlyCount "117"]
[EventDate "2022.04.18"]
[EventType "tourn"]
[EventCountry "GRE"]
[SourceTitle "playchess.com"]
[Source "ChessBase"]
[SourceQuality "1"]
[TimeControl "40/5400+30:1800+30"]

{[%evp 13,117,17,19,14,22,20,20,24,22,17,21,15,46,11,18,24,14,9,4,0,0,0,9,8,0,-35,-11,-29,24,17,19,16,14,0,2,0,1,11,16,0,0,0,49,49,49,49,49,49,49,0,64,64,64,64,64,64,75,75,85,75,79,79,85,85,85,79,79,79,79,64,64,58,75,47,75,75,75,64,79,63,63,63,63,63,63,63,63,63,63,0,0,0,63,63,63,63,63,63,63,63,63,63,63,63,63,0]} 1. d4 {[%emt 0:00:04]} d5 {[%emt 0:04:07]} 2. c4 {[%emt 0:00:19]} e6 {[%emt 0:00:03]} 3. Nc3 {[%emt 0:00:15]} Nf6 {[%emt 0:00:15]} 4. cxd5 {[%emt 0:00:15]} exd5 {[%emt 0:00:03]} 5. Bg5 {[%emt 0:00:18]} c6 {[%emt 0:00:06]} 6. e3 {[%emt 0:00:50]} Bd6 {[%emt 0:00:28]} 7. Bd3 {[%emt 0:00:48]} O-O {[%emt 0:00:50]} 8. Nge2 {[%emt 0:05:02] D35: Queen's Gambit Declined: Exchange Variation.} Re8 {[%emt 0:00:22]} 9. Qc2 {[%emt 0:05:17][%cal Od3h7] next Bxh7+! is good for White.} h6 {[%emt 0:00:16]} 10. Bf4 {[%emt 0:00:29] The position is equal.} Bf8 {[%emt 0:01:22]} 11. h3 {[%emt 0:01:20] [#]} b6 $146 {[%emt 0:11:47]} ({Predecessor:} 11... a5 12. O-O Na6 13. a3 Nc7 14. Rae1 Ne6 15. Bh2 Ng5 16. Kh1 Bd7 17. Ng1 Rc8 {1-0 (62) Bluebaum,M (2647)-Zwirs,N (2453) Chess.com INT 2020}) 12. O-O {[%emt 0:02:47]} Ba6 {[%emt 0:00:24]} 13. Nc1 {[%emt 0:02:26]} Bxd3 {[%emt 0:06:46]} 14. Nxd3 {[%emt 0:00:08]} Nbd7 {[%emt 0:00:26]} 15. b4 {[%emt 0:03:02]} Rc8 {[%emt 0:15:47]} 16. Qa4 {[%emt 0:18:02]} a5 {[%emt 0:04:09]} 17. a3 {[%emt 0:02:49]} c5 {[%emt 0:10:52]} 18. dxc5 {[%emt 0:03:20]} bxc5 {[%emt 0:01:06]} 19. bxa5 {[%emt 0:01:46]} Ra8 {[%emt 0:09:53]} 20. a6 {[%emt 0:01:53]} Qb6 {[%emt 0:07:47] [#]} ({Better is} 20... Re6) 21. Nxd5 $1 $11 {[%emt 0:01:24]} Nxd5 {[%emt 0:00:05]} 22. Qxd7 {[%emt 0:00:08]} Red8 {[%emt 0:00:26]} 23. Qb7 {[%emt 0:00:36] Strongly threatening Ne5.} Rxa6 {[%emt 0:04:00]} 24. Qxb6 {[%emt 0:01:29]} Nxb6 {[%emt 0:00:14]} 25. Ne5 {[%emt 0:02:06]} c4 {[%emt 0:07:08]} 26. Rfc1 {[%emt 0:08:06]} Rc8 {[%emt 0:02:10]} 27. a4 {[%emt 0:04:52][%cal Ba3a4,Ba4a5][%mdl 32]} c3 {[%emt 0:00:35]} (27... f6 $11 {might be stronger.} 28. Ng6 Nxa4) 28. a5 $14 {[%emt 0:01:07]} Nd5 {[%emt 0:00:09]} 29. Nd3 {[%emt 0:00:44]} Nb4 {[%emt 0:08:30]} 30. Nxb4 {[%emt 0:01:19]} Bxb4 {[%emt 0:00:04]} 31. Kf1 {[%emt 0:01:17]} (31. Ra4 $14 {was preferrable.} Rc4 32. Be5) 31... Rxa5 {[%emt 0:01:35]} (31... Rc5 $11) 32. Rxa5 {[%emt 0:00:27]} Bxa5 $11 {[%emt 0:00:03][%mdl 4096] Endgame KRB-KRB} 33. Be5 $1 {[%emt 0:01:53]} c2 {[%emt 0:03:08]} 34. Ke2 {[%emt 0:00:13] Prevents Bd2.} Bb4 {[%emt 0:00:18]} 35. Kd3 {[%emt 0:00:21]} f5 {[%emt 0:01:28]} 36. Rxc2 {[%emt 0:00:14]} Rxc2 {[%emt 0:00:03]} 37. Kxc2 $16 {[%emt 0:00:05] Threatens to win with Kb3. KB-KB} Kf7 {[%emt 0:00:12]} 38. Kd3 {[%emt 0:00:50]} g6 {[%emt 0:00:07]} 39. Kc4 {[%emt 0:01:40]} Be1 {[%emt 0:00:08]} 40. f3 {[%emt 0:00:00]} Ke6 {[%emt 0:00:00]} 41. Bg7 {[%emt 0:02:03]} h5 {[%emt 0:00:37]} 42. e4 {[%emt 0:00:30]} Bg3 {[%emt 0:01:10]} 43. Bd4 {[%emt 0:00:30]} Bf4 {[%emt 0:00:53]} 44. Kd3 {[%emt 0:00:20]} Bc7 {[%emt 0:00:44]} 45. Ke3 {[%emt 0:00:57]} Bd6 {[%emt 0:00:24]} 46. f4 {[%emt 0:00:17]} fxe4 {[%emt 0:01:00]} 47. Kxe4 {[%emt 0:00:03]} Bb4 {[%emt 0:00:36]} 48. g4 {[%emt 0:00:23]} hxg4 {[%emt 0:00:06]} 49. hxg4 {[%emt 0:00:02]} Be7 {[%emt 0:00:15]} 50. Bg7 {[%emt 0:00:14]} Kf7 {[%emt 0:00:15]} 51. Bh6 {[%emt 0:00:18] Inhibits g5.} (51. Bh8 $14) 51... Ke6 {[%emt 0:00:11]} 52. Bg5 {[%emt 0:00:13]} Bb4 {[%emt 0:00:07]} (52... Bxg5 $11 53. fxg5 Kd6) 53. Kd4 {[%emt 0:00:19] White is slightly better.} Bd6 {[%emt 0:00:26]} 54. Kc4 {[%emt 0:00:08]} Kf7 {[%emt 0:00:22]} 55. Kd5 {[%emt 0:00:06]} Bb4 {[%emt 0:00:09]} 56. Bd8 {[%emt 0:00:29]} Bd2 {[%emt 0:00:14]} 57. Bc7 $1 {[%emt 0:00:29]} Bc1 {[%emt 0:00:09]} 58. Be5 {[%emt 0:00:09]} Ba3 {[%emt 0:00:14]} 59. Kc6 {[%emt 0:00:20] Weighted Error Value: White=0.07 (flawless) /Black=0.11 (very precise)} (59. Ke4 $14) 1/2-1/2

[Event "8th Fischer Heraklion-GM 2022"]
[Site "Heraklion"]
[Date "2022.04.29"]
[Round "4.4"]
[White "Mitsis, Georgios"]
[Black "Materia, Marco"]
[Result "1/2-1/2"]
[ECO "E06"]
[WhiteElo "2344"]
[BlackElo "2398"]
[Annotator "TA"]
[PlyCount "108"]
[EventDate "2022.04.18"]
[EventType "tourn"]
[EventCountry "GRE"]
[SourceTitle "playchess.com"]
[Source "ChessBase"]
[SourceQuality "1"]
[TimeControl "40/5400+30:1800+30"]

{[%evp 17,108,0,6,10,18,0,8,-8,0,-27,-44,-36,-32,-41,-49,-81,-18,-40,-29,-82,-75,-85,-73,-73,-73,-73,-73,-80,-15,-15,-28,-12,0,0,0,0,0,0,0,0,0,0,0,0,0,0,0,0,0,0,0,0,0,-8,4,0,0,0,0,-8,-8,-8,-8,-8,-8,-8,-8,-8,-8,-8,0,-8,-8,-8,-8,-8,-8,-8,-8,-8,-8,-8,-8,-8,-8,-8,-8,-8,-8,-8,-8,-8,-8]} 1. d4 {[%emt 0:00:06]} Nf6 {[%emt 0:00:03]} 2. c4 {[%emt 0:00:09]} e6 {[%emt 0:00:03]} 3. Nf3 {[%emt 0:00:22]} d5 {[%emt 0:00:04]} 4. g3 {[%emt 0:00:25]} Be7 {[%emt 0:00:05]} 5. Bg2 {[%emt 0:00:21]} O-O {[%emt 0:00:07]} 6. O-O {[%emt 0:00:09]} c6 {[%emt 0:00:03]} 7. Qc2 {[%emt 0:01:36]} b6 {[%emt 0:00:10]} 8. Nbd2 {[%emt 0:00:33]} Bb7 {[%emt 0:00:13]} 9. e4 {[%emt 0:02:23]} Na6 {[%emt 0:00:56][%cal Bb8a6,Ba6c5,Bc5e6][%mdl 32]} 10. a3 $1 {[%emt 0:03:46] 10.a3 is better than 10.e5. E06: Closed Catalan: Early deviations.} c5 {[%emt 0:01:22][%cal Rd5e4]} 11. cxd5 {[%emt 0:22:40]} exd5 {[%emt 0:02:30]} 12. exd5 {[%emt 0:06:11]} (12. e5 $5 {[%cal Re5f6]} Ne4 13. Rd1 $11) 12... Rc8 {[%emt 0:10:06]} 13. dxc5 {[%emt 0:08:35]} Nxc5 {[%emt 0:03:55]} 14. b4 {[%emt 0:03:41] [#]} Ne6 {[%emt 0:11:11] [#]} 15. Qb3 $146 {[%emt 0:11:19]} (15. Qf5 g6) ({Predecessor:} 15. Qa4 Bxd5 16. Bb2 Qc7 17. Rfc1 {½-½ (17) Roussel Roozmon,T (2463)-Sambuev,B (2503) Longueuil 2019}) 15... Bxd5 {[%emt 0:02:46]} 16. Qd3 {[%emt 0:01:12]} Bb7 {[%emt 0:06:35]} ({Better is} 16... Qc7 $17 17. Qb1 Qb7) 17. Qxd8 $11 {[%emt 0:03:49]} Rfxd8 {[%emt 0:00:32]} 18. Bb2 {[%emt 0:00:36]} (18. Re1 $1 $11) 18... Rc2 $17 {[%emt 0:01:33][%csl LRb2,LRd2]} 19. Rab1 {[%emt 0:02:48]} Rcxd2 {[%emt 0:07:15]} 20. Nxd2 {[%emt 0:00:08]} Bxg2 {[%emt 0:00:05]} 21. Kxg2 {[%emt 0:00:08] Threatens to win with Nf3.} Rxd2 {[%emt 0:00:01]} 22. Rfd1 {[%emt 0:00:20]} Ne4 {[%emt 0:05:35]} (22... Rxd1 $17 23. Rxd1 a5 24. bxa5 bxa5) 23. Rxd2 $11 {[%emt 0:00:43]} Nxd2 {[%emt 0:00:07]} 24. Rc1 {[%emt 0:00:43]} f6 {[%emt 0:16:10] The position is equal.} 25. Rc8+ {[%emt 0:04:52]} Kf7 {[%emt 0:00:21]} 26. Bc1 {[%emt 0:00:19]} Nb3 {[%emt 0:04:03]} 27. Be3 {[%emt 0:00:16]} a5 {[%emt 0:03:50]} 28. Rb8 $1 {[%emt 0:01:00]} axb4 {[%emt 0:02:15]} 29. axb4 {[%emt 0:00:12]} Nc7 {[%emt 0:01:34]} (29... Bxb4 $2 30. Rxb6 Bd2 31. Rxb3 Bxe3 32. Rxe3 $18) 30. Rb7 {[%emt 0:07:37]} Nd5 {[%emt 0:00:42]} 31. Bxb6 {[%emt 0:00:52]} Nxb4 {[%emt 0:00:28]} 32. Be3 {[%emt 0:04:33]} ({But not} 32. Bd8 Nc6 $1 33. Bxe7 Nba5 $15) 32... Ke6 {[%emt 0:02:39]} 33. Rb6+ {[%emt 0:01:06]} Kf7 {[%emt 0:02:42]} 34. Rb7 {[%emt 0:00:07]} h6 {[%emt 0:03:08]} 35. h3 {[%emt 0:00:23]} g5 {[%emt 0:01:17]} 36. g4 {[%emt 0:00:44]} Ke6 {[%emt 0:00:40]} 37. h4 {[%emt 0:00:26]} Bd6 {[%emt 0:01:29]} 38. Rh7 {[%emt 0:02:29]} Bf8 {[%emt 0:00:23]} 39. Rb7 {[%emt 0:00:18]} Na5 {[%emt 0:00:34]} 40. Rb8 {[%emt 0:00:00]} ({Much worse is} 40. Rb6+ Bd6 41. Bc5 Nbc6 42. Bxd6 Kxd6 $15) 40... Be7 {[%emt 0:00:00]} 41. Rh8 {[%emt 0:05:20]} Nc4 {[%emt 0:05:06]} 42. Rxh6 {[%emt 0:01:26]} Nxe3+ {[%emt 0:04:42]} 43. fxe3 {[%emt 0:00:12]} Bf8 {[%emt 0:00:49]} 44. hxg5 {[%emt 0:06:14]} Bxh6 {[%emt 0:00:21]} 45. gxh6 {[%emt 0:00:06][%mdl 4096] Endgame White threatens h7 and mate. KN-K3P} Kf7 {[%emt 0:00:17]} 46. Kf3 {[%emt 0:00:12]} Kg6 {[%emt 0:04:15]} 47. Ke4 {[%emt 0:01:24]} Nc6 {[%emt 0:00:49]} 48. h7 {[%emt 0:02:45]} Kxh7 {[%emt 0:00:18] KN-KPP} (48... Kg7 {with more complications.} 49. Kf5 Ne7+ 50. Ke6 Ng6) 49. Kf5 {[%emt 0:00:07]} Kg7 {[%emt 0:00:04]} 50. g5 {[%emt 0:00:15]} Ne7+ {[%emt 0:00:03]} 51. Kg4 {[%emt 0:00:42]} (51. Ke6 {[#]} fxg5 $1 52. Ke5 Kg6 53. Ke4 Nc6 54. Kd3 Ne5+ 55. Ke2 Kh5 56. Kf1 Kh4 57. Kg2 g4 58. Kg1 Kh3 59. Kf2 g3+ 60. Kg1 g2 61. Kf2 Kh2 62. Ke1 g1=Q+ 63. Kd2 Qg2+ 64. Kc3 Qe4 65. Kb2 Qd3 66. Ka2 Nc4 67. Ka1 Qc3+ 68. Kb1 Qb2#) 51... f5+ {[%emt 0:00:06]} 52. Kf4 $1 {[%emt 0:00:05]} Kg6 {[%emt 0:00:31] ( -> ...Nd5+)} 53. e4 {[%emt 0:00:06] Inhibits Nd5+.} fxe4 {[%emt 0:00:03]} 54. Kxe4 {[%emt 0:00:05]} Kxg5 {[%emt 0:00:02] Weighted Error Value: White=0.04 (flawless) /Black=0.07 (flawless)} 1/2-1/2